[Event "GER-ch Blitz 2019"]
[Site "Magdeburg"]
[Date "2019.05.25"]
[Round "21.12"]
[White "Zelbel, Patrick"]
[Black "Braeuer, Franz"]
[Result "1/2-1/2"]
[ECO "B22"]
[WhiteElo "2439"]
[BlackElo "2445"]
[Annotator "NA"]
[PlyCount "88"]
[EventDate "2019.05.25"]
[EventType "tourn"]
[EventCountry "GER"]
[Tiebreak "Number of wins+Number of black wins"]
[SourceTitle "playchess.com"]
[Source "ChessBase"]
[SourceQuality "1"]
[TimeControl "180+2"]

1. e4 {[%emt 0:00:00]} c5 {[%emt 0:00:00]} 2. c3 {[%emt 0:00:00]} Nf6 {[%emt 0:
00:00]} 3. e5 {[%emt 0:00:00]} Nd5 {[%emt 0:00:00]} 4. Bc4 {[%emt 0:00:00]} Nb6
{[%emt 0:00:04]} 5. Bb3 {[%emt 0:00:00]} Nc6 {[%emt 0:00:07]} 6. Nf3 {[%emt 0:
00:01]} d6 {[%emt 0:00:01]} 7. exd6 {[%emt 0:00:01]} Qxd6 {[%emt 0:00:04]} 8.
O-O {[%emt 0:00:01]} Bf5 {[%emt 0:00:13]} 9. d4 {[%emt 0:00:02]} cxd4 {[%emt 0:
00:02]} 10. Nxd4 {[%emt 0:00:01]} Nxd4 {[%emt 0:00:08]} 11. cxd4 {[%emt 0:00:
01]} e6 {[%emt 0:00:07]} 12. Qf3 {[%emt 0:00:17]} Qc6 {[%emt 0:00:11]} 13.
Qxc6+ {[%emt 0:00:40]} bxc6 {[%emt 0:00:01]} 14. Be3 {[%emt 0:00:09]} Be7 {
[%emt 0:00:08]} 15. Rc1 {[%emt 0:00:00]} Rc8 {[%emt 0:00:11]} 16. Nd2 {[%emt 0:
00:07]} O-O {[%emt 0:00:03]} 17. Nc4 {[%emt 0:00:04]} Nd5 {[%emt 0:00:17]} 18.
Ne5 {[%emt 0:00:24]} Nxe3 {[%emt 0:00:50]} 19. fxe3 {[%emt 0:00:00]} Be4 {
[%emt 0:00:17]} 20. Bc2 {[%emt 0:00:10]} Bxc2 {[%emt 0:00:32]} 21. Rxc2 c5 {
[%emt 0:00:00]} 22. Rac1 {[%emt 0:00:08]} Rfd8 {[%emt 0:00:01]} 23. Nd3 {
[%emt 0:00:17]} Rb8 {[%emt 0:00:21]} 24. Nxc5 {[%emt 0:00:01]} Bxc5 {[%emt 0:
00:04]} 25. dxc5 {[%emt 0:00:00]} Rdc8 {[%emt 0:00:02]} 26. b3 {[%emt 0:00:16]}
Kf8 {[%emt 0:00:01]} 27. Kf2 {[%emt 0:00:13]} Ke7 {[%emt 0:00:01]} 28. Rc3 {
[%emt 0:00:01]} Rb5 {[%emt 0:00:01]} 29. Rc4 {[%emt 0:00:18]} f5 {[%emt 0:00:
04]} 30. b4 {[%emt 0:00:07]} a5 {[%emt 0:00:03]} 31. a3 {[%emt 0:00:01]} axb4 {
[%emt 0:00:05]} 32. axb4 Rcb8 {[%emt 0:00:00]} 33. c6 {[%emt 0:00:04]} Rc8 {
[%emt 0:00:01]} 34. Rd1 {[%emt 0:00:04]} Rc7 {[%emt 0:00:00]} 35. Rb1 {[%emt 0:
00:20]} Kd6 {[%emt 0:00:01]} 36. Rd1+ {[%emt 0:00:07]} Ke7 {[%emt 0:00:01]} 37.
Kf3 {[%emt 0:00:03]} g5 {[%emt 0:00:01]} 38. g4 {[%emt 0:00:02]} Rb6 {[%emt 0:
00:02]} 39. Rdc1 Kd6 40. gxf5 {[%emt 0:00:04]} exf5 {[%emt 0:00:01]} 41. Rd1+ {
[%emt 0:00:00]} Ke6 {[%emt 0:00:02]} 42. Rdc1 {[%emt 0:00:02]} Kd6 {[%emt 0:00:
01]} 43. Rd1+ Ke6 {[%emt 0:00:00]} 44. Rdc1 {[%emt 0:00:06]} Kd6 {[%emt 0:00:
01] Ke4 Ke5+} 1/2-1/2

[Event "GER-ch Blitz 2019"]
[Site "Magdeburg"]
[Date "2019.05.25"]
[Round "21.13"]
[White "Ehmann, Thilo"]
[Black "Schulze, Marc"]
[Result "0-1"]
[ECO "B27"]
[WhiteElo "2291"]
[BlackElo "2220"]
[Annotator "NA"]
[PlyCount "94"]
[EventDate "2019.05.25"]
[EventType "tourn"]
[EventCountry "GER"]
[Tiebreak "Number of wins+Number of black wins"]
[SourceTitle "playchess.com"]
[Source "ChessBase"]
[SourceQuality "1"]
[TimeControl "180+2"]

1. e4 {[%emt 0:00:00]} c5 {[%emt 0:00:00]} 2. Nf3 {[%emt 0:00:00]} g6 {[%emt 0:
00:00]} 3. d4 {[%emt 0:00:00]} cxd4 {[%emt 0:00:00]} 4. Nxd4 {[%emt 0:00:01]}
Bg7 {[%emt 0:00:01]} 5. Nc3 {[%emt 0:00:10]} Nc6 {[%emt 0:00:01]} 6. Be3 {
[%emt 0:00:01]} Nf6 {[%emt 0:00:01]} 7. Nxc6 {[%emt 0:00:29]} bxc6 {[%emt 0:00:
01]} 8. e5 {[%emt 0:00:01]} Nd5 {[%emt 0:00:09]} 9. Nxd5 {[%emt 0:00:07]} cxd5
{[%emt 0:00:01]} 10. Qxd5 {[%emt 0:00:33]} Rb8 {[%emt 0:00:01]} 11. Bc4 {
[%emt 0:00:12]} O-O {[%emt 0:00:02]} 12. O-O {[%emt 0:00:04]} Qc7 {[%emt 0:00:
04]} 13. Bb3 {[%emt 0:00:30]} Bxe5 {[%emt 0:00:06]} 14. Bxa7 {[%emt 0:00:20]}
Bxh2+ {[%emt 0:00:20]} 15. Kh1 {[%emt 0:00:00]} Qxa7 {[%emt 0:00:17]} 16. Kxh2
{[%emt 0:00:01]} Qc7+ {[%emt 0:00:01]} 17. Kg1 {[%emt 0:00:01]} d6 {[%emt 0:00:
04]} 18. Qd2 {[%emt 0:00:15]} Rb5 {[%emt 0:00:08]} 19. Rfe1 {[%emt 0:00:12]}
Bb7 {[%emt 0:00:20]} 20. Qe3 {[%emt 0:00:11]} e6 {[%emt 0:00:15]} 21. Rad1 {
[%emt 0:00:09]} Qc6 {[%emt 0:00:09]} 22. f3 {[%emt 0:00:01]} Rh5 {[%emt 0:00:
10]} 23. Qd4 {[%emt 0:00:06]} d5 {[%emt 0:00:12]} 24. Re5 {[%emt 0:00:01]} Rh6
{[%emt 0:00:22]} 25. Rde1 {[%emt 0:00:01]} Qd6 {[%emt 0:00:13]} 26. R5e3 {
[%emt 0:00:10]} Qh2+ {[%emt 0:00:01]} 27. Kf2 {[%emt 0:00:00]} Rh5 {[%emt 0:00:
18]} 28. Qg4 {[%emt 0:00:03]} d4 {[%emt 0:00:08]} 29. R3e2 {[%emt 0:00:04]} h6
{[%emt 0:00:07]} 30. Qg3 {[%emt 0:00:01]} Qxg3+ {[%emt 0:00:07]} 31. Kxg3 {
[%emt 0:00:00]} Rd8 {[%emt 0:00:03]} 32. f4 {[%emt 0:00:03]} d3 {[%emt 0:00:03]
} 33. cxd3 {[%emt 0:00:02]} Rxd3+ {[%emt 0:00:01]} 34. Re3 {[%emt 0:00:01]} Rd2
{[%emt 0:00:02]} 35. R1e2 {[%emt 0:00:01]} Rd8 {[%emt 0:00:04]} 36. Kf2 {
[%emt 0:00:02]} Rh2 {[%emt 0:00:02]} 37. Rg3 {[%emt 0:00:01]} Rh4 {[%emt 0:00:
02]} 38. Ke3 {[%emt 0:00:01]} Kg7 {[%emt 0:00:06]} 39. Rf2 {[%emt 0:00:01]} e5
{[%emt 0:00:02]} 40. Rh3 {[%emt 0:00:05]} exf4+ {[%emt 0:00:04]} 41. Ke2 {
[%emt 0:00:00]} f3+ {[%emt 0:00:02]} 42. Ke3 {[%emt 0:00:02]} fxg2 {[%emt 0:00:
02]} 43. Rxf7+ {[%emt 0:00:02]} Kh8 {[%emt 0:00:01]} 44. Rxh4 {[%emt 0:00:01]}
g1=Q+ {[%emt 0:00:01]} 45. Ke2 {[%emt 0:00:05]} Qg2+ {[%emt 0:00:04]} 46. Rf2 {
[%emt 0:00:02]} Re8+ {[%emt 0:00:02]} 47. Kd3 {[%emt 0:00:04]} Qxf2 {Kd4} 0-1

[Event "GER-ch Blitz 2019"]
[Site "Magdeburg"]
[Date "2019.05.25"]
[Round "21.14"]
[White "Svane, Frederik"]
[Black "Kopylov, Michael"]
[Result "1-0"]
[ECO "B01"]
[WhiteElo "2342"]
[BlackElo "2413"]
[Annotator "NA"]
[PlyCount "129"]
[EventDate "2019.05.25"]
[EventType "tourn"]
[EventCountry "GER"]
[Tiebreak "Number of wins+Number of black wins"]
[SourceTitle "playchess.com"]
[Source "ChessBase"]
[SourceQuality "1"]
[TimeControl "180+2"]

1. e4 {[%emt 0:00:00]} d5 {[%emt 0:00:00]} 2. exd5 {[%emt 0:00:02]} Qxd5 {
[%emt 0:00:00]} 3. Nc3 Qd6 4. g3 {[%emt 0:00:08]} Nf6 {[%emt 0:00:01]} 5. Bg2 {
[%emt 0:00:01]} Bg4 {[%emt 0:00:01]} 6. Nge2 {[%emt 0:00:06]} Nc6 {[%emt 0:00:
00]} 7. O-O {[%emt 0:00:03]} O-O-O {[%emt 0:00:02]} 8. h3 {[%emt 0:00:03]} Bh5
{[%emt 0:00:01]} 9. d3 {[%emt 0:00:26]} e5 {[%emt 0:00:03]} 10. Bg5 {[%emt 0:
00:18]} Be7 {[%emt 0:00:04]} 11. Qd2 {[%emt 0:00:27]} Rhe8 {[%emt 0:00:06]} 12.
Bxf6 {[%emt 0:00:07]} Qxf6 {[%emt 0:00:14]} 13. Nd5 {[%emt 0:00:06]} Qe6 {
[%emt 0:00:10]} 14. Nxe7+ {[%emt 0:00:13]} Rxe7 {[%emt 0:00:07]} 15. Nc3 {
[%emt 0:00:07]} Nd4 {[%emt 0:00:02]} 16. f4 {[%emt 0:01:05]} exf4 {[%emt 0:00:
12]} 17. Rae1 {[%emt 0:00:09]} Qb6 {[%emt 0:00:45]} 18. Rxe7 {[%emt 0:00:02]}
Nf5+ {[%emt 0:00:28]} 19. Qf2 {[%emt 0:00:02]} Nxe7 {[%emt 0:00:14]} 20. Qxb6 {
[%emt 0:00:01]} axb6 {[%emt 0:00:01]} 21. Rxf4 {[%emt 0:00:01]} f6 {[%emt 0:00:
02]} 22. g4 {[%emt 0:00:01]} Bf7 {[%emt 0:00:00]} 23. Kf2 {[%emt 0:00:02]} c6 {
[%emt 0:00:01]} 24. a4 {[%emt 0:00:02]} Kc7 {[%emt 0:00:00]} 25. Re4 {[%emt 0:
00:02]} Kd6 {[%emt 0:00:07]} 26. Rd4+ {[%emt 0:00:01]} Kc7 {[%emt 0:00:01]} 27.
Re4 {[%emt 0:00:01]} Ng6 {[%emt 0:00:06]} 28. Kg3 {[%emt 0:00:06]} Ne5 {
[%emt 0:00:19]} 29. h4 {[%emt 0:00:01]} Rd7 {[%emt 0:00:13]} 30. g5 {[%emt 0:
00:02]} Bg6 {[%emt 0:00:04]} 31. Re3 {[%emt 0:00:07]} Rd4 {[%emt 0:00:01]} 32.
gxf6 {[%emt 0:00:03]} gxf6 {[%emt 0:00:00]} 33. Be4 {[%emt 0:00:03]} f5 {
[%emt 0:00:06]} 34. Bxf5 {[%emt 0:00:02]} Bxf5 35. Rxe5 {[%emt 0:00:01]} Rg4+ {
[%emt 0:00:06]} 36. Kf3 {[%emt 0:00:00]} Bd7 {[%emt 0:00:01]} 37. Rh5 {[%emt 0:
00:02]} Rg7 {[%emt 0:00:02]} 38. Rh6 {[%emt 0:00:01]} Rf7+ {[%emt 0:00:01]} 39.
Ke3 {[%emt 0:00:01]} Bf5 {[%emt 0:00:05]} 40. Ne4 {[%emt 0:00:01]} Re7 {
[%emt 0:00:08]} 41. Kf4 {[%emt 0:00:02]} Bg6 {[%emt 0:00:02]} 42. h5 {[%emt 0:
00:04]} Rf7+ {[%emt 0:00:05]} 43. Ke5 {[%emt 0:00:01]} Bxe4 {[%emt 0:00:07]}
44. dxe4 {[%emt 0:00:02]} Kd7 45. Rf6 {[%emt 0:00:01]} Re7+ {[%emt 0:00:07]}
46. Kf5 {[%emt 0:00:01]} Rg7 {[%emt 0:00:05]} 47. h6 {[%emt 0:00:00]} Rg2 {
[%emt 0:00:03]} 48. Rf7+ Kd6 49. Rxh7 {[%emt 0:00:02]} Rxc2 {[%emt 0:00:01]}
50. Rxb7 {[%emt 0:00:02]} Rxb2 {[%emt 0:00:03]} 51. h7 Rh2 52. Kf6 {[%emt 0:00:
03]} Rf2+ {[%emt 0:00:04]} 53. Kg7 {[%emt 0:00:02]} Rg2+ {[%emt 0:00:01]} 54.
Kh8 {[%emt 0:00:02]} c5 {[%emt 0:00:05]} 55. Rxb6+ {[%emt 0:00:02]} Ke5 {
[%emt 0:00:00]} 56. Rc6 {[%emt 0:00:02]} Kd4 {[%emt 0:00:02]} 57. a5 {[%emt 0:
00:01]} c4 {[%emt 0:00:03]} 58. a6 {[%emt 0:00:01]} c3 {[%emt 0:00:02]} 59. a7
{[%emt 0:00:01]} Ra2 {[%emt 0:00:00]} 60. Rc7 {[%emt 0:00:04]} c2 {[%emt 0:00:
03]} 61. Rxc2 {[%emt 0:00:07]} Rxa7 {[%emt 0:00:01]} 62. Re2 {[%emt 0:00:13]}
Ke5 {[%emt 0:00:01]} 63. Rf2 {[%emt 0:00:02]} Ke6 {[%emt 0:00:03]} 64. Kg8 {
[%emt 0:00:01]} Ra3 {[%emt 0:00:12]} 65. h8=Q 1-0

[Event "GER-ch Blitz 2019"]
[Site "Magdeburg"]
[Date "2019.05.25"]
[Round "21.15"]
[White "Kirchner, Thomas"]
[Black "Heidrich, Manfred"]
[Result "1/2-1/2"]
[ECO "B30"]
[WhiteElo "2311"]
[BlackElo "2351"]
[Annotator "NA"]
[PlyCount "29"]
[EventDate "2019.05.25"]
[EventType "tourn"]
[EventCountry "GER"]
[Tiebreak "Number of wins+Number of black wins"]
[SourceTitle "playchess.com"]
[Source "ChessBase"]
[SourceQuality "1"]
[TimeControl "180+2"]

1. e4 {[%emt 0:00:00]} c5 {[%emt 0:00:00]} 2. Nf3 {[%emt 0:00:00]} Nc6 {
[%emt 0:00:00]} 3. Bc4 {[%emt 0:00:02]} e6 {[%emt 0:00:01]} 4. O-O {[%emt 0:00:
03]} d5 {[%emt 0:00:02]} 5. exd5 exd5 6. Bb5 {[%emt 0:00:02]} Be7 {[%emt 0:00:
03]} 7. d4 {[%emt 0:00:01]} Nf6 {[%emt 0:00:03]} 8. h3 {[%emt 0:00:02]} O-O {
[%emt 0:00:01]} 9. c3 {[%emt 0:00:01]} a6 {[%emt 0:00:02]} 10. Ba4 {[%emt 0:00:
02]} Bf5 {[%emt 0:00:04]} 11. Re1 {[%emt 0:00:01]} Re8 {[%emt 0:00:04]} 12. Bf4
{[%emt 0:00:03]} Ne4 {[%emt 0:00:14]} 13. Nbd2 {[%emt 0:00:06]} Bf8 {[%emt 0:
00:13]} 14. Nxe4 {[%emt 0:00:20]} dxe4 {[%emt 0:00:06]} 15. Ne5 1/2-1/2

[Event "GER-ch Blitz 2019"]
[Site "Magdeburg"]
[Date "2019.05.25"]
[Round "22.2"]
[White "Carow, Johannes"]
[Black "Krause, Benedict"]
[Result "1/2-1/2"]
[ECO "D95"]
[WhiteElo "2445"]
[BlackElo "2434"]
[Annotator "NA"]
[PlyCount "81"]
[EventDate "2019.05.25"]
[EventType "tourn"]
[EventCountry "GER"]
[Tiebreak "Number of wins+Number of black wins"]
[SourceTitle "playchess.com"]
[Source "ChessBase"]
[SourceQuality "1"]
[TimeControl "180+2"]

1. d4 {[%emt 0:00:00]} Nf6 {[%emt 0:00:00]} 2. c4 {[%emt 0:00:01]} g6 {[%emt 0:
00:00]} 3. Nc3 {[%emt 0:00:02]} d5 {[%emt 0:00:00]} 4. Nf3 {[%emt 0:00:01]} Bg7
{[%emt 0:00:01]} 5. e3 {[%emt 0:00:02]} O-O {[%emt 0:00:03]} 6. Qb3 {[%emt 0:
00:02]} e6 {[%emt 0:00:06]} 7. Bd2 c6 {[%emt 0:00:14]} 8. Bd3 {[%emt 0:00:13]}
b6 {[%emt 0:00:33]} 9. O-O {[%emt 0:00:03]} Bb7 {[%emt 0:00:02]} 10. a4 {
[%emt 0:00:11]} Nbd7 {[%emt 0:00:03]} 11. cxd5 {[%emt 0:00:07]} exd5 {[%emt 0:
00:15]} 12. a5 {[%emt 0:00:13]} c5 {[%emt 0:00:02]} 13. Bb5 {[%emt 0:00:02]}
cxd4 {[%emt 0:00:36]} 14. exd4 {[%emt 0:00:23]} bxa5 {[%emt 0:00:07]} 15. Ne2 {
[%emt 0:00:13]} Nb6 {[%emt 0:00:03]} 16. Bxa5 {[%emt 0:00:07]} Ne4 {[%emt 0:00:
04]} 17. Ne5 {[%emt 0:00:09]} Qf6 {[%emt 0:00:39]} 18. f3 {[%emt 0:00:28]} Nd6
{[%emt 0:00:01]} 19. Bxb6 {[%emt 0:00:03]} axb6 {[%emt 0:00:02]} 20. Nd7 {
[%emt 0:00:04]} Qe7 {[%emt 0:00:20]} 21. Nxf8 {[%emt 0:00:03]} Nxb5 {[%emt 0:
00:10]} 22. Qxb5 {[%emt 0:00:25]} Qe3+ {[%emt 0:00:01]} 23. Kh1 {[%emt 0:00:04]
} Rxf8 {[%emt 0:00:10]} 24. Qxb6 {[%emt 0:00:32]} Qxe2 {[%emt 0:00:10]} 25.
Qxb7 {[%emt 0:00:03]} Bxd4 {[%emt 0:00:01]} 26. Rab1 {[%emt 0:00:11]} Rd8 {
[%emt 0:00:03]} 27. Rfd1 {[%emt 0:00:03]} Qc2 {[%emt 0:00:05]} 28. Qe7 {
[%emt 0:00:05]} Rc8 {[%emt 0:00:01]} 29. Qd7 {[%emt 0:00:03]} Bxb2 {[%emt 0:00:
03]} 30. Qxd5 {[%emt 0:00:03]} Bf6 {[%emt 0:00:01]} 31. h3 {[%emt 0:00:01]} h5
{[%emt 0:00:01]} 32. Rb7 {[%emt 0:00:02]} Rc7 {[%emt 0:00:01]} 33. Rb8+ {
[%emt 0:00:02]} Kg7 {[%emt 0:00:01]} 34. Rbb1 {[%emt 0:00:03]} Rc5 {[%emt 0:00:
01]} 35. Qd7 {[%emt 0:00:01]} Rc7 {[%emt 0:00:00]} 36. Qb5 {[%emt 0:00:01]} h4
{[%emt 0:00:01]} 37. Qd3 {[%emt 0:00:02]} Qf2 {[%emt 0:00:02]} 38. Rf1 {
[%emt 0:00:01]} Qg3 {[%emt 0:00:00]} 39. Rbe1 {[%emt 0:00:05]} Be5 {[%emt 0:00:
02]} 40. Rxe5 {[%emt 0:00:02]} Qxe5 {[%emt 0:00:01]} 41. Qb3 {[%emt 0:00:01]}
1/2-1/2

[Event "GER-ch Blitz 2019"]
[Site "Magdeburg"]
[Date "2019.05.25"]
[Round "22.3"]
[White "Hebbinghaus, Holger"]
[Black "Schulz, Karsten"]
[Result "1/2-1/2"]
[ECO "B06"]
[WhiteElo "2310"]
[BlackElo "2227"]
[Annotator "NA"]
[PlyCount "136"]
[EventDate "2019.05.25"]
[EventType "tourn"]
[EventCountry "GER"]
[Tiebreak "Number of wins+Number of black wins"]
[SourceTitle "playchess.com"]
[Source "ChessBase"]
[SourceQuality "1"]
[TimeControl "180+2"]

1. e4 {[%emt 0:00:00]} g6 {[%emt 0:00:00]} 2. d4 {[%emt 0:00:00]} Bg7 {[%emt 0:
00:00]} 3. Nc3 {[%emt 0:00:00]} d6 {[%emt 0:00:00]} 4. Be3 {[%emt 0:00:01]} a6
{[%emt 0:00:00]} 5. f4 {[%emt 0:00:02]} b5 {[%emt 0:00:02]} 6. Be2 {[%emt 0:00:
01]} Bb7 {[%emt 0:00:01]} 7. Bf3 {[%emt 0:00:01]} Nd7 {[%emt 0:00:03]} 8. e5 {
[%emt 0:00:01]} Qc8 {[%emt 0:00:05]} 9. Qe2 {[%emt 0:00:02]} Nh6 {[%emt 0:00:
04]} 10. Nh3 {[%emt 0:00:11]} O-O {[%emt 0:00:14]} 11. O-O {[%emt 0:00:12]} e6
{[%emt 0:00:07]} 12. Bf2 {[%emt 0:00:25]} Nb6 {[%emt 0:00:18]} 13. Ne4 {
[%emt 0:00:18]} Nd5 {[%emt 0:00:34]} 14. exd6 {[%emt 0:00:16]} Bc6 {[%emt 0:00:
06]} 15. c3 {[%emt 0:00:13]} Qd7 {[%emt 0:00:06]} 16. dxc7 {[%emt 0:00:05]}
Qxc7 {[%emt 0:00:01]} 17. Bg3 {[%emt 0:00:14]} Nf5 {[%emt 0:00:06]} 18. Nc5 {
[%emt 0:00:07]} Rfe8 {[%emt 0:00:05]} 19. Nd3 {[%emt 0:00:03]} Nde3 {[%emt 0:
00:06]} 20. Rfe1 {[%emt 0:00:15]} Bxf3 {[%emt 0:00:05]} 21. gxf3 {[%emt 0:00:
05]} Rac8 {[%emt 0:00:15]} 22. Bf2 {[%emt 0:00:15]} Nd5 {[%emt 0:00:01]} 23.
Ne5 {[%emt 0:00:04]} Bh6 {[%emt 0:00:05]} 24. Bg3 {[%emt 0:00:05]} Qb7 {
[%emt 0:00:10]} 25. Qe4 {[%emt 0:00:06]} Nd6 {[%emt 0:00:03]} 26. Qe2 {[%emt 0:
00:03]} Nf5 {[%emt 0:00:01]} 27. Qe4 {[%emt 0:00:04]} a5 {[%emt 0:00:01]} 28.
Nf2 {[%emt 0:00:12]} Bg7 {[%emt 0:00:01]} 29. Nfd3 {[%emt 0:00:01]} Bf8 {
[%emt 0:00:03]} 30. Ng4 {[%emt 0:00:04]} h5 {[%emt 0:00:05]} 31. Nf6+ Kg7 {
[%emt 0:00:10]} 32. Nxe8+ {[%emt 0:00:05]} Rxe8 {[%emt 0:00:01]} 33. Bf2 {
[%emt 0:00:06]} Bd6 {[%emt 0:00:02]} 34. Ne5 {[%emt 0:00:01]} Qc7 {[%emt 0:00:
04]} 35. Rac1 {[%emt 0:00:02]} Nf6 {[%emt 0:00:08]} 36. Qe2 {[%emt 0:00:05]}
Rb8 {[%emt 0:00:02]} 37. c4 b4 {[%emt 0:00:01]} 38. d5 {[%emt 0:00:11]} Bc5 {
[%emt 0:00:16]} 39. dxe6 {[%emt 0:00:04]} fxe6 {[%emt 0:00:03]} 40. Bxc5 {
[%emt 0:00:02]} Qxc5+ {[%emt 0:00:01]} 41. Qf2 {[%emt 0:00:01]} Qc7 {[%emt 0:
00:01]} 42. Red1 {[%emt 0:00:03]} Rb7 {[%emt 0:00:05]} 43. c5 {[%emt 0:00:01]}
Nd5 {[%emt 0:00:05]} 44. c6 {[%emt 0:00:02]} Rb8 {[%emt 0:00:05]} 45. Rxd5 {
[%emt 0:00:04]} exd5 {[%emt 0:00:03]} 46. Qc5 {[%emt 0:00:01]} Rd8 {[%emt 0:00:
03]} 47. Rd1 {[%emt 0:00:02]} d4 {[%emt 0:00:03]} 48. Nd7 {[%emt 0:00:03]} Rxd7
{[%emt 0:00:09]} 49. cxd7 {[%emt 0:00:01]} Qxc5 {[%emt 0:00:01]} 50. d8=Q {
[%emt 0:00:02]} d3+ {[%emt 0:00:02]} 51. Kh1 {[%emt 0:00:02]} Nd4 {[%emt 0:00:
08]} 52. Qd7+ {[%emt 0:00:04]} Kh6 {[%emt 0:00:04]} 53. Qe8 {[%emt 0:00:06]}
Kh7 {[%emt 0:00:07]} 54. Qe4 {[%emt 0:00:02]} Ne2 {[%emt 0:00:08]} 55. Qxd3 {
[%emt 0:00:03]} Nxf4 {[%emt 0:00:03]} 56. Qd7+ {[%emt 0:00:03]} Kh6 {[%emt 0:
00:01]} 57. Qd4 {[%emt 0:00:03]} Qf5 {[%emt 0:00:02]} 58. Qd2 {[%emt 0:00:02]}
h4 {[%emt 0:00:03]} 59. Re1 {[%emt 0:00:03]} h3 {[%emt 0:00:02]} 60. Re4 {
[%emt 0:00:02]} g5 {[%emt 0:00:01]} 61. Qd6+ {[%emt 0:00:01]} Kh5 {[%emt 0:00:
02]} 62. Qd8 {[%emt 0:00:04]} Qc5 {[%emt 0:00:05]} 63. Qh8+ {[%emt 0:00:02]}
Kg6 {[%emt 0:00:01]} 64. Qg8+ {[%emt 0:00:03]} Kh6 {[%emt 0:00:04]} 65. Qh8+ {
[%emt 0:00:02]} Kg6 {[%emt 0:00:01]} 66. Qe8+ {[%emt 0:00:03]} Kh6 {[%emt 0:00:
02]} 67. Qh8+ {[%emt 0:00:03]} Kg6 {[%emt 0:00:00]} 68. Qg8+ {[%emt 0:00:01]}
Kh6 {[%emt 0:00:00]} 1/2-1/2

[Event "GER-ch Blitz 2019"]
[Site "Magdeburg"]
[Date "2019.05.25"]
[Round "22.4"]
[White "Stern, Rene"]
[Black "Barzen, Pascal"]
[Result "0-1"]
[ECO "D55"]
[WhiteElo "2538"]
[BlackElo "2292"]
[Annotator "ChessBase"]
[PlyCount "56"]
[EventDate "2019.05.25"]
[EventType "tourn"]
[EventCountry "GER"]
[Tiebreak "Number of wins+Number of black wins"]
[SourceTitle "playchess.com"]
[Source "ChessBase"]
[SourceQuality "1"]
[TimeControl "180+2"]

1. Nf3 {[%emt 0:00:00]} Nf6 {[%emt 0:00:00]} 2. c4 {[%emt 0:00:00]} e6 {
[%emt 0:00:00]} 3. Nc3 {[%emt 0:00:01]} d5 {[%emt 0:00:02]} 4. d4 {[%emt 0:00:
01]} Be7 {[%emt 0:00:02]} 5. Bg5 {[%emt 0:00:01]} O-O {[%emt 0:00:01]} 6. e3 {
[%emt 0:00:01]} b6 {[%emt 0:00:01]} 7. Qc2 {[%emt 0:00:06]} Bb7 {[%emt 0:00:01]
} 8. Bxf6 {[%emt 0:00:02]} Bxf6 {[%emt 0:00:01]} 9. cxd5 {[%emt 0:00:01]} exd5
{[%emt 0:00:02]} 10. Bd3 {[%emt 0:00:01]} g6 {[%emt 0:00:11]} 11. h4 c5 12. h5
{[%emt 0:00:15]} c4 {[%emt 0:00:13]} 13. Be2 {[%emt 0:00:01]} Re8 {[%emt 0:00:
06]} 14. O-O-O {[%emt 0:00:06]} Nc6 {[%emt 0:00:09]} 15. hxg6 {[%emt 0:00:05]}
hxg6 {[%emt 0:00:02]} 16. Kb1 {[%emt 0:00:28]} Nb4 {[%emt 0:00:12]} 17. Qd2 {
[%emt 0:00:13]} Bc8 {[%emt 0:00:02]} 18. Ka1 {[%emt 0:00:03]} Bf5 {[%emt 0:00:
05]} 19. Ne1 {[%emt 0:00:03]} b5 {[%emt 0:00:11]} 20. g4 {[%emt 0:00:01]} Be6 {
[%emt 0:00:11]} 21. f4 {[%emt 0:00:04]} Qa5 {[%emt 0:00:14]} 22. a3 {[%emt 0:
00:09]} Nc6 {[%emt 0:00:22]} 23. Nxd5 {[%emt 0:00:04]} Bxd5 {[%emt 0:00:03]}
24. Rh3 {[%emt 0:00:23]} b4 {[%emt 0:00:00]} 25. Nc2 {[%emt 0:00:05]} c3 {
[%emt 0:00:02]} 26. bxc3 {[%emt 0:00:03]} bxc3 {[%emt 0:00:02]} 27. Qc1 {
[%emt 0:00:04]} Rab8 {[%emt 0:00:08]} 28. Rdh1 {[%emt 0:00:15]} Rb2 {[%emt 0:
00:05]} 0-1

[Event "GER-ch Blitz 2019"]
[Site "Magdeburg"]
[Date "2019.05.25"]
[Round "22.5"]
[White "Heistermann, Till"]
[Black "Hirneise, Jens"]
[Result "0-1"]
[ECO "A10"]
[WhiteElo "2181"]
[BlackElo "2375"]
[Annotator "NA"]
[PlyCount "65"]
[EventDate "2019.05.25"]
[EventType "tourn"]
[EventCountry "GER"]
[Tiebreak "Number of wins+Number of black wins"]
[SourceTitle "playchess.com"]
[Source "ChessBase"]
[SourceQuality "1"]
[TimeControl "180+2"]

1. c4 {[%emt 0:00:00]} g6 {[%emt 0:00:00]} 2. g3 {[%emt 0:00:00]} Bg7 {[%emt 0:
00:00]} 3. Bg2 {[%emt 0:00:00]} Nf6 {[%emt 0:00:00]} 4. Nc3 {[%emt 0:00:00]}
O-O 5. e3 d6 {[%emt 0:00:03]} 6. Nge2 {[%emt 0:00:01]} e5 {[%emt 0:00:10]} 7.
O-O {[%emt 0:00:03]} Re8 {[%emt 0:00:02]} 8. d3 {[%emt 0:00:01]} c6 {[%emt 0:
00:03]} 9. Rb1 {[%emt 0:00:16]} a5 {[%emt 0:00:10]} 10. a3 {[%emt 0:00:01]} Be6
{[%emt 0:00:04]} 11. b4 {[%emt 0:00:08]} axb4 {[%emt 0:00:01]} 12. axb4 {
[%emt 0:00:00]} d5 {[%emt 0:00:20]} 13. cxd5 {[%emt 0:00:09]} cxd5 {[%emt 0:00:
01]} 14. Bb2 {[%emt 0:00:02]} Nc6 {[%emt 0:00:10]} 15. b5 {[%emt 0:00:07]} Ne7
{[%emt 0:00:02]} 16. Qd2 {[%emt 0:00:11]} Qd7 {[%emt 0:00:06]} 17. Rfc1 {
[%emt 0:00:07]} Bh3 {[%emt 0:00:06]} 18. Bh1 {[%emt 0:00:01]} h5 {[%emt 0:00:
02]} 19. d4 {[%emt 0:00:59]} e4 {[%emt 0:00:05]} 20. Ra1 {[%emt 0:00:07]} Nh7 {
[%emt 0:00:21]} 21. Nf4 {[%emt 0:00:06]} Bg4 {[%emt 0:00:16]} 22. h3 {[%emt 0:
00:11]} Bxh3 {[%emt 0:00:11]} 23. Nxh3 {[%emt 0:00:01]} Qxh3 {[%emt 0:00:02]}
24. Bg2 {[%emt 0:00:00]} Qf5 {[%emt 0:00:04]} 25. Ba3 {[%emt 0:00:11]} Bf8 {
[%emt 0:00:09]} 26. Bxe7 {[%emt 0:00:01]} Bxe7 {[%emt 0:00:01]} 27. Qb2 {
[%emt 0:00:10]} h4 {[%emt 0:00:08]} 28. Qb3 {[%emt 0:00:36]} hxg3 {[%emt 0:00:
52]} 29. fxg3 {[%emt 0:00:01]} Nf6 {[%emt 0:00:03]} 30. Rxa8 {[%emt 0:00:07]}
Rxa8 {[%emt 0:00:01]} 31. Rf1 {[%emt 0:00:20]} Qg5 {[%emt 0:00:01]} 32. Ne2 {
[%emt 0:00:03]} Ra3 {[%emt 0:00:11]} 33. Qd1 0-1